Cogmind - Beta 16 @@@ ROGUE MODE // 2025.11.04 @ 02:52:58 Player: shapeshifter Result: Destroyed by 8R-AWN with 8R-AWN's Boregun Performance ------------- Evolutions (0) 0 Regions Visited (3) 600 Robots Destroyed (4) 20 Value Destroyed (70) 70 Prototype IDs (37) 740 Alien Tech Used (0) 0 Bonus (433) 433 TOTAL SCORE: 1863 Bonus ------- Follower Combat Kills 133 Aligned with FarCom 300 Cogmind --------- Core Integrity 0/250 Matter 250/300 Energy 82/100 System Corruption 0% Temperature Cool (0) Movement Core (100) Ox1 Location -10/Exiles Parts ------- > --- POWER (1) -------- (None) > --- PROPULSION (2) --- (None) > --- UTILITY (2) ------ Seismic Detector > --- WEAPON (2) ------- Longsword +1 > --- INVENTORY (5) ---- High-capacity Matter Pod (200) PSU Rigger YOLO Cannon Peak State ------------ > --- POWER ------------ Light Ion Engine > --- PROPULSION ------- Light Treads Light Treads > --- UTILITY ---------- Large Storage Unit Seismic Detector > --- WEAPON ----------- Assault Rifle Longsword +1 > --- INVENTORY -------- Fission Core Fission Core Light Fission Core Light Treads High-capacity Matter Pod High-capacity Matter Pod Experimental Sensor Array PSU Rigger YOLO Cannon Assault Rifle Light Assault Rifle Light Assault Rifle Light Assault Rifle Datajack [Rating: 20] Favorites ----------- Power Light Ion Engine Engine Light Ion Engine Propulsion Light Treads Treads Light Treads Utility Seismic Detector Device Seismic Detector Storage Large Storage Unit Weapon Light Assault Rifle Ballistic Gun Light Assault Rifle Slashing Weapon Longsword +1 Special Melee Weapon Datajack Build | -11 -10 -10 -10 ------- Run | Yrd Mat Min Exi Slots Evolved . | . . . . Power . | . . . . Propulsion . | . . . . Utility . | . . . . Weapon . | . . . . Parts Attached 14 | 7 1 . 6 Power 2 | 1 . . 1 Engine 2 | 1 . . 1 Core . | . . . . Reactor . | . . . . Propulsion 3 | 2 . . 1 Treads 3 | 2 . . 1 Leg . | . . . . Wheel . | . . . . Hover . | . . . . Flight . | . . . . Utility 3 | 2 1 . . Device 1 | 1 . . . Storage 2 | 1 1 . . Processor . | . . . . Hackware . | . . . . Protection . | . . . . Artifact . | . . . . Weapon 6 | 2 . . 4 Energy Gun . | . . . . Energy Cannon . | . . . . Ballistic Gun 4 | 2 . . 2 Ballistic Cannon . | . . . . Launcher . | . . . . Special Weapon . | . . . . Impact Weapon . | . . . . Slashing Weapon 1 | . . . 1 Piercing Weapon . | . . . . Special Melee Weapon 1 | . . . 1 Unidentified Prototypes . | . . . . Parts Lost 8 | . . 1 7 Power 2 | . . 1 1 Propulsion 3 | . . . 3 Utility . | . . . . Weapon 3 | . . . 3 Highest Loss Streak 7 | . . 1 7 To Critical Strikes 5 | . . . 5 Average Backups 11 | 3 5 10 12 Power . | . 1 1 . Propulsion 2 | 1 2 2 1 Utility 3 | . 1 3 4 Weapon 3 | . 1 2 4 Tool/Special . | . . . . Unused Backups 14 | . . . 14 Power 3 | . . . 3 Propulsion 2 | . . . 2 Utility 6 | . . . 6 Weapon 3 | . . . 3 Tool/Special . | . . . . Average Slot Usage (%) 98 | . 100 96 99 Engine 12 | . 14 10 13 Treads 27 | . 28 28 27 Device 14 | . 14 14 14 Storage 13 | . 14 14 13 Ballistic Gun 24 | . 28 28 20 Slashing Weapon 2 | . . . 4 Special Melee Weapon 1 | . . . 2 Peak Build Rating 20 | 7 7 9 20 Average Rating 10 | 4 7 7 13 On Entrance 5 | . 7 7 8 Avg Prop Armor Cover (%) . | . . . . Naked Turns . | . . . . Heaviest Build 29 | 12 27 27 29 Greatest Support 40 | 40 40 40 40 Greatest Overweight (x) . | . . . . Average Overweight (x) . | . . . . Largest Inventory Capacity 15 | 8 15 15 15 Average Capacity 14 | 7 12 15 14 Most Carried 15 | 6 7 14 15 Average Carried 11 | 3 5 10 13 Final Capacity 15 | 8 15 15 5 Final Carried 14 | 5 6 14 4 Class Distribution -------------------- 100% | Mutant Dominant Class ---------------- Mutant | -10/Materials Mutant | -10/Mines Mutant | -10/Exiles Resources | -11 -10 -10 -10 ----------- Run | Yrd Mat Min Exi Matter Collected 457 | 286 . 90 81 Remotely . | . . . . Salvage Created 234 | 105 . 67 62 Parts 6 | 3 . 3 . Haulers Intercepted . | . . . . Recyclers Shooed . | . . . . Parts Field Recycled . | . . . . Retrieved Matter . | . . . . Parts Self-Destructed . | . . . . Prevented . | . . . . Parts Restored . | . . . . Kills | -11 -10 -10 -10 ------- Run | Yrd Mat Min Exi Combat Hostiles Destroyed 6 | . . 2 4 Guns 6 | . . 2 4 Classes Destroyed 5 | 2 . 2 1 Tunneler 1 | 1 . . . Recycler 1 | 1 . . . Swarmer 1 | . . 1 . Grunt 1 | . . 1 . Assembled 4 | . . . 4 Best Kill Streak 4 | 2 . 1 4 Combat Bots Only 4 | . . 1 4 Max Kills in Single Turn 1 | 1 . 1 1 Gunslinging . | . . . . Exploded . | . . . . Melee . | . . . . Uniques/NPCs Destroyed . | . . . . Combat | -11 -10 -10 -10 -------- Run | Yrd Mat Min Exi Hostile Shots Fired 97 | . . 37 60 Missed 21 | . . 9 12 Hits 76 | . . 28 48 Projectile 76 | . . 28 48 Critical Strikes 21 | . . 1 20 Part Disruptions 2 | . . . 2 Damage Taken 1086 | . . 324 762 Core 254 | . . 38 216 Absorbed by Shields . | . . . . Core Remaining (%) 100 | 100 . . . Volleys Fired 44 | 4 . 21 19 Largest 2 | 2 . 2 2 Hottest 40 | 40 . 40 40 Shots Fired 72 | 8 . 42 22 Gun 72 | 8 . 42 22 Cannon . | . . . . Launcher . | . . . . Special . | . . . . Kinetic 72 | 8 . 42 22 Thermal . | . . . . Explosive . | . . . . Electromagnetic . | . . . . Robot Hit Streak 7 | 6 . 7 3 Robot Miss Streak 7 | 1 . 7 6 Penetration Max . | . . . . Secondary Targets 1 | . . . 1 Max Gunslinging Chain 1 | . . . 1 Shots Hit Robots 62 | 6 . 26 30 Core Hits 21 | 3 . 11 7 Critical Kills . | . . . . Critical Parts Destroyed . | . . . . Critical Strikes . | . . . . Melee Attacks 22 | . . . 22 Impact . | . . . . Slashing 18 | . . . 18 Piercing . | . . . . Sneak Attacks 4 | . . . 4 Combat Hostiles . | . . . . Follow-up Attacks . | . . . . Damage Inflicted 1160 | 61 . 278 821 Guns 481 | 61 . 278 142 Cannons . | . . . . Explosions . | . . . . Melee 679 | . . . 679 Ramming . | . . . . Kinetic 481 | 61 . 278 142 Thermal . | . . . . Explosive . | . . . . Electromagnetic . | . . . . Impact . | . . . . Slashing 679 | . . . 679 Piercing . | . . . . Highest Corruption . | . . . . Average Corruption . | . . . . Corruption Purged . | . . . . Corruption Blocked . | . . . . Overload Shots . | . . . . Overflow Damage . | . . . . Projectiles . | . . . . Explosions . | . . . . Melee . | . . . . Knockbacks . | . . . . Impact . | . . . . Kinetic . | . . . . Secondary . | . . . . Self-Inflicted Damage . | . . . . Shots . | . . . . Rammed . | . . . . Targets Rammed . | . . . . Kicked . | . . . . Crushed . | . . . . Highest Temperature 13 | . . 9 13 Average Temperature 7 | . . 5 9 Received Heat Transfer 228 | . . 108 120 Siege Activations . | . . . . Martial Activations . | . . . . Shielding Activations . | . . . . Robots Disrupted . | . . . . Combat Hostiles . | . . . . Robots Corrupted . | . . . . Combat Hostiles . | . . . . Parts Fried . | . . . . Impact Corruptions . | . . . . Robots Melted . | . . . . Combat Hostiles . | . . . . Parts Melted . | . . . . Heat Transferred . | . . . . Parts Sabotaged . | . . . . Parts Stolen . | . . . . Parts Stripped . | . . . . Power Chain Reactions . | . . . . Alert | -11 -10 -10 -10 ------- Run | Yrd Mat Min Exi Maximum Alert Level . | . . . . Low Security (%) 100 | 100 100 100 . Level 1 . | . . . . Level 2 . | . . . . Level 3 . | . . . . Level 4 . | . . . . Level 5 . | . . . . High Security . | . . . . Max Security . | . . . . Peak Influence 69 | 5 . 69 . Initial . | . . . . Average 12 | 1 . 14 . Influence Increases 207 | 10 . 197 . Destroy 0b10 Robot/C 140 | . . 140 . Destroy 0b10 Robot/NC 10 | 10 . . . Destroy Leader 30 | . . 30 . Allied During Kill 27 | . . 27 . Influence Decreases 207 | 10 . 170 27 Entered New Map 27 | . . . 27 Time Decay 180 | 10 . 170 . Squads Dispatched . | . . . . Investigation . | . . . . Extermination . | . . . . Reinforcement . | . . . . Assault . | . . . . Garrison . | . . . . Intercept . | . . . . Searches Triggered . | . . . . Construction Impeded . | . . . . Haulers Reinforced . | . . . . Active Scanning Responses . | . . . . Cargo Convoy Interrupts . | . . . . Stealth | -11 -10 -10 -10 --------- Run | Yrd Mat Min Exi Distress Signals . | . . . . Communications Jammed . | . . . . Distress Signals . | . . . . Times Spotted 16 | . 1 9 6 Peak Tracking Total 9 | . 1 3 9 Tactical Retreats . | . . . . Traps | -11 -10 -10 -10 ------- Run | Yrd Mat Min Exi Traps Triggered . | . . . . Indirectly . | . . . . Trap Hack Attempts . | . . . . Triggered . | . . . . Disarmed . | . . . . Reprogrammed . | . . . . Reused . | . . . . Traps Extracted . | . . . . Installed . | . . . . Triggered . | . . . . Machines | -11 -10 -10 -10 ---------- Run | Yrd Mat Min Exi Machines Disabled 3 | . . . 3 Max in Single Turn 1 | . . . 1 Machines Repaired . | . . . . Machines Dismantled . | . . . . Machines Sabotaged . | . . . . Overloaded Fab Kills . | . . . . Hacking | -11 -10 -10 -10 --------- Run | Yrd Mat Min Exi Machines Accessed 2 | . . . 2 Terminals . | . . . . Fabricators . | . . . . Repair Stations . | . . . . Recycling Units . | . . . . Scanalyzers . | . . . . Garrison Access . | . . . . Total Hacks 2 | . . . 2 Successful 2 | . . . 2 Failed . | . . . . Catastrophic . | . . . . Database Lockouts . | . . . . Manual 1 | . . . 1 Terminals . | . . . . Fabricators . | . . . . Repair Stations . | . . . . Recycling Units . | . . . . Scanalyzers . | . . . . Garrison Access . | . . . . Terminal Hacks 2 | . . . 2 Record 1 | . . . 1 Proto ID Catalog 1 | . . . 1 Fabricator Hacks . | . . . . Repair Station Hacks . | . . . . Recycling Unit Hacks . | . . . . Scanalyzer . | . . . . Garrison Access Hacks . | . . . . Unauthorized Hacks . | . . . . Terminals . | . . . . Fabricators . | . . . . Repair Stations . | . . . . Recycling Units . | . . . . Scanalyzers . | . . . . Garrison Access . | . . . . Data Cores Recovered . | . . . . Used . | . . . . Hacking Detections . | . . . . Full Trace Events . | . . . . Feedback Events . | . . . . Feedback Blocked . | . . . . Robot Schematics Acquired . | . . . . Robots Built . | . . . . Authchips . | . . . . Time . | . . . . Total Robot Build Rating . | . . . . Part Schematics Acquired . | . . . . Parts Built . | . . . . Authchips . | . . . . Time . | . . . . Total Part Build Rating . | . . . . Part Studies Acquired . | . . . . Parts Repaired . | . . . . Time . | . . . . Parts Recycled . | . . . . Recycled Matter . | . . . . Retrieved Matter . | . . . . Retrieved Components . | . . . . Parts Scanalyzed . | . . . . Part Schematics Acquired . | . . . . Parts Damaged . | . . . . Bothacking | -11 -10 -10 -10 ------------ Run | Yrd Mat Min Exi Used RIF Installer . | . . . . Robots Hacked 4 | . . . 4 Non-combat 3 | . . . 3 Combat 1 | . . . 1 Robot Hacks Applied 4 | . . . 4 parse_system 4 | . . . 4 Relay Couplers Released . | . . . . Fabnet Peak Effective % . | . . . . Robots Rewired . | . . . . Allies Hacked . | . . . . Hacks Repelled . | . . . . Allies | -11 -10 -10 -10 -------- Run | Yrd Mat Min Exi Total Allies 3 | . . 3 . Largest Group 3 | . . 3 3 Highest-Rated Group 40 | . . 40 40 Highest-Rated Ally 16 | . . 16 16 Total Orders 5 | . . . 5 STAY 3 | . . . 3 FOLLOW 2 | . . . 2 Ally Attacks 37 | . . 25 12 Total Damage 469 | . . 321 148 Kills 5 | . . 5 . Allies Corrupted . | . . . . Allies Melted . | . . . . Intel | -11 -10 -10 -10 ------- Run | Yrd Mat Min Exi Active Infowar (turns) 2442 | 6 121 1047 1268 Seismic 2442 | 6 121 1047 1268 Robot Analysis Total . | . . . . Derelict Logs Recovered 1 | . . 1 . Drone Launches . | . . . . Drone Recoveries . | . . . . Exploration | -11 -10 -10 -10 ------------- Run | Yrd Mat Min Exi Turns Passed 2526 | 90 121 1047 1268 Spaces Moved 1411 | 47 66 594 704 Core 13 | 13 . . . Treads 1398 | 34 66 594 704 Legs . | . . . . Wheels . | . . . . Hover . | . . . . Flight . | . . . . Fastest Speed 50 | 50 160 160 160 Average Speed 158 | 129 160 160 160 Slowest Speed 160 | 160 160 160 160 Overloaded Moves . | . . . . Propulsion Burnouts . | . . . . Robots Hopped . | . . . . Potential Cave-ins . | . . . . Cave-ins Triggered . | . . . . Exploration Rate (%) 47 | 6 16 97 70 Regions Visited 3 Branch Regions 2 Pre-discovered Areas 2 | . . 1 1 Known Exits Taken . | . . . . Unknown Exits Taken 3 | 1 1 1 . Scrap Searched 1 | . . 1 . Spaces Dug . | . . . . Terrain Destroyed . | . . . . Melee . | . . . . Projectile . | . . . . AOE . | . . . . Terrain Rammed . | . . . . Walls Destroyed . | . . . . Machines Disabled . | . . . . Actions | -11 -10 -10 -10 --------- Run | Yrd Mat Min Exi Total 1609 | 69 82 653 805 Wait 79 | . 13 31 35 Move 1408 | 46 65 593 704 Hop . | . . . . Pick Up 28 | 12 2 8 6 Fast Attach . | . . . . Attach 11 | 7 . . 4 Detach . | . . . . Swap 7 | . 1 . 6 Drop 10 | . 1 . 9 Fire 44 | 4 . 21 19 Melee 22 | . . . 22 Ram . | . . . . Kick . | . . . . Crush . | . . . . Escape Stasis . | . . . . Rewire . | . . . . Trap . | . . . . Miscellaneous . | . . . . Route ------- -11/Scrapyard -10/Materials -10/Mines (discovered 3 exits: [*Mat x2] / *Exi) -10/Exiles (discovered 1 exit: [*Min]) History --------- Turn | Location | Event 7 | -11/Scrapyard | Discovered new exit (range 15) 91 | -11/Scrapyard | Entered Materials 200 | -10/Materials | Discovered new exit (range 7) 212 | -10/Materials | Entered Mines 281 | -10/Mines | Assisted by bots powering up and referring to "LRC-V3" 302 | -10/Mines | Build established: Mutant 333 | -10/Mines | Found a hidden stash of uninstalled traps 427 | -10/Mines | Learned location of Storage (-7) 442 | -10/Mines | Deemed a non-threat by the Exiles lab entrance 442 | -10/Mines | Discovered new exit (range 5) 501 | -10/Mines | Discovered new exit (range 6) 802 | -10/Mines | Joined a pair of Derelicts in attacking an 0b10 outpost 959 | -10/Mines | Found a damaged Exp. Sensor Array with a note attached 962 | -10/Mines | Found Prototype Device 971 | -10/Mines | Discovered new exit (range 15) 1082 | -10/Mines | Learned Materials stockpile data 1259 | -10/Mines | Entered Exiles 1259 | -10/Exiles | Accompanied by 3 allies 1297 | -10/Exiles | Met 8R-AWN 1324 | -10/Exiles | Met EX-HEX 1403 | -10/Exiles | Met EX-DEC 1430 | -10/Exiles | Learned location of Zion (-7) 1526 | -10/Exiles | Met EX-BIN 1548 | -10/Exiles | Aligned with FarCom system 1550 | -10/Exiles | Given EX-Vault access code 1587 | -10/Exiles | Opened EX-Vault 1601 | -10/Exiles | Found YOLO Cannon 1610 | -10/Exiles | Found Longsword +1 1612 | -10/Exiles | Found PSU Rigger 1647 | -10/Exiles | Warned to stay clear of 0b10 Research branches 1880 | -10/Exiles | Discovered new exit (range 14) 2388 | -10/Exiles | Attacked by the Exiles 2467 | -10/Exiles | Lost 3 allies 2504 | -10/Exiles | Core integrity fell below 50% 2523 | -10/Exiles | Core integrity fell below 20% 2527 | -10/Exiles | Destroyed by 8R-AWN with 8R-AWN's Boregun Last Messages --------------- 02501_ HV Slug penetrates Wall. 02501_ HV Slug penetrates Machine. 02501_ HV Slug penetrates Wall. 02501_ HV Slug penetrates Machine. 02503_ Penetrated by HV Slug. 02503_ Critical hit (Destroy). 02503_ Assault Rifle destroyed. 02505_ Penetrated by HV Slug. 02505_ Lgt. Ion Engine destroyed. 02509_ Penetrated by HV Slug. 02513_ HV Slug penetrates Wall. 02515_ Penetrated by HV Slug. 02520_ Critical hit (Destroy). 02520_ Lgt. Treads destroyed. 02520_ Penetrated by HV Slug. 02522_ Critical hit (Destroy). 02522_ Lgt. Assault Rifle destroyed. 02524_ Penetrated by HV Slug. 02527_ HV Slug penetrates Wall. 02527_ Penetrated by HV Slug. Map ----- +----------------------------------------------------+ | ?????????????????????????????????????????????????? | | ?????????????????????????????????????????????????? | | ?????????????????????????????????????????????????? | | ?????????????????????????????????????????????????? | | ?????????????????????????????????????????????????? | | ?????????????????????????????????????????????????? | | ?????????????????????????????????????????????????? | | ?????????????????????????????????????????????????? | | ?????????????????????????????????????????????????? | | ?????????#####???????????????????????????????????? | | ????????## ##??????????????????????????????????? | | ????????# #??????????????????????????????????? | | ????????# < #??????????????????????????????????? | | ????????# ###????????????????????????????????? | | ????????# #????????????????????????????????? | | ????????# ##????????????????????????????????? | | ????????## #?????????????????????????????????? | | ?????????# ##????????????????????????????????? | | ?????????## #????????????#######?????????????? | | ??????????# #######??????#!!! "#?????????????? | | ??????????# #""##?????# "#?????????????? | | ??????????## #?????# "#?????????????? | | ???????????##" ##???## ""#????????????## | | ???????????#"" #####" "#???????????? | | ???????????#### g ##" ""#????????????" | | ??????????????## !! @ #"" #?????????????"" | | ???????????????#"##= [ #????????????#"" | | ???????????????####### / ##???????????#"" | | ?????????????????????###[!!! #???????????? | | ???????????????######## ![*%= ###???????????" | | ???????????????# !!""" =%= a ""#?????????# | | ???????????????#! % "###"" ;#####???### | | ???????????????#! "#?##" """#####X# | | ???????????????#! ##??#" % | | ???????????????# !"" "#;#???#"# | | ???????????????########## #???#### | | ????????????????????????# #??????### * | | ????????????????????????# #????????### | | ????????????????????????# #??????????## | | ????????????????????????? ????????????## | | ????????????????????????? ?????????????##" | | ????????????????????????? ??????????????#""" | | ?????????????????????????#?????????????##" | | ???????????????????????????????????????#"" | | ??????????????????????????????????????##""" | | ??????????????????????????????????????#""" | | ??????????????????????????????????????#""" | | ??????????????????????????????????????#"" | | ??????????????????????????????????????#""" | | ??????????????????????????????????????#"" | +----------------------------------------------------+ Best States ------------- Heat Dissipation 25 Energy Generation 10 Energy Capacity 125 Matter Stores 300 Matter Capacity 300 Sight Range 16 Terrain Scan Density 10 Evasion (%) 50 Recoil Reduction 2 Item Schematics ----------------- None Robot Schematics ------------------ None Fabricated ------------ Nothing Repaired ---------- Nothing Studied --------- None Alien Tech Used ----------------- None Achievements -------------- None Challenges ------------ None Game ------ Seed HugeTrapManipulator Manual? 0 Play Time 00:09:16 Cumulative 466.2 hours Start 2025.11.04 @ 02:26:28 End 2025.11.04 @ 02:52:58 Sessions 2 Manual Loads 0 Difficulty Rogue Special Mode None Game No. 584 Rogue 584 Adventurer 0 Explorer 0 Win Type - Total 14 Types 6/0/2/2/1/0/2/1/0/0 Lore% 90 Gallery% 85 Achievement% 62 Wizard Run 0 Options --------- Layout 0 ASCII 0 Keyboard 0 Movement Mouse Keybinds 0 Fullscreen 1 Font 24/Terminus Map View 76x50 Zoom Use 0% Tactical HUD 1 Map Filters NONE Filters NONE Steam 1 RUN: bb7b1f85-c8b2-4ee1-92da-f2e799f728ba